lending/lending_fUSD_20250406
["ID","MTS","AMOUNT","RATE_DAILY","PERIOD"]
[357231137,1743923454139,-900.0,0.00083,120]
[357231138,1743923454148,-175.456,0.0008305,120]
[357231139,1743923454157,-175.456,0.0008305,120]
[357231140,1743923454166,-187.96,0.00083414,30]
[357231141,1743923454176,-900.0,0.00084,120]
[357231142,1743923454186,-369.23,0.00084816,120]
[357231143,1743923454196,-8013.18369894,0.00084989,7]
[357231144,1743923454206,-1000.0,0.00084999,120]
[357231145,1743923454215,-900.0,0.00085,120]
[357231146,1743923454224,-151.0,0.00085671,120]
[357231147,1743923454234,-166.48747506,0.00085784,120]
[357231148,1743923454243,-900.0,0.00086,120]
[357231149,1743923454252,-900.0,0.00087,120]
[357231150,1743923454262,-350.8098718,0.00087299,120]
[357231151,1743923454271,-900.0,0.00088,120]
[357231152,1743923454280,-290.744623,0.00088988,120]
[357231153,1743923454294,-900.0,0.00089,120]
[357231154,1743923454304,-2000.0,0.000892,120]
[357231155,1743923454314,-152.0,0.00089212,3]
[357231156,1743923454323,-290.744623,0.000893,60]
[357231157,1743923454333,-1000.0,0.00089999,120]
[357231158,1743923454342,-290.744623,0.0009,2]
[357231159,1743923454352,-290.744623,0.0009,90]
[357231160,1743923454361,-2321.0,0.0009,120]
[357231161,1743923454372,-500.0,0.0009,30]
[357231162,1743923454381,-569.1,0.00090298,120]
[357231163,1743923454392,-500.0,0.0009041,120]
[357231164,1743923454402,-369.23,0.00090613,120]
[357231165,1743923454412,-184.58,0.00090904,5]
[357231166,1743923454421,-166.48747506,0.00092792,120]
[357231167,1743923454431,-151.0,0.00093808,120]
[357231168,1743923454440,-484.73,0.00094305,120]
[357231169,1743923454450,-2787.21525437,0.00094319,120]
[357231170,1743923454460,-2787.21525437,0.00094408,120]
[357231171,1743923454470,-2787.21525437,0.00094423,120]
[357231172,1743923454479,-2787.21525437,0.00094521,120]
[357231173,1743923454490,-2787.21525437,0.00094788,120]
[357231174,1743923454499,-2787.21525437,0.00094801,120]
[357231175,1743923454509,-2787.21525437,0.00094983,120]
[357231176,1743923454519,-1000.0,0.00094999,120]
[357231177,1743923454528,-3427.05,0.00095,120]
[357231178,1743923454537,-2787.21525437,0.00095043,120]
[357231179,1743923454547,-211.0,0.0009638,120]
[357231180,1743923454557,-369.23,0.0009641,120]
[357231181,1743923454567,-8013.18369894,0.0009649,8]
[357231182,1743923454577,-2439.76541972,0.000965,120]
[357231183,1743923454587,-8013.18369894,0.0009749,8]
[357231184,1743923454597,-20206.68791703,0.000975,120]
[357231185,1743923454607,-1026.2953347,0.000975,120]
[357231186,1743923454617,-931.2966517,0.00097909,120]
[357231187,1743923454626,-1000.0,0.00097999,120]
[357231188,1743923454636,-388.0,0.00098,2]
[357231189,1743923454646,-16026.3673979,0.0009821,8]
[357231190,1743923454656,-10000.0,0.0009822,120]
[357231191,1743923454665,-10000.0,0.0009822,120]
[357231192,1743923454675,-6520.874019,0.0009822,120]
[357231193,1743923454684,-500.0,0.0009884,120]
[357231194,1743923454694,-449.6,0.0009884,120]
[357231195,1743923454704,-500.0,0.0009884,120]
[357231196,1743923454714,-500.0,0.0009884,120]
[357231197,1743923454724,-575.3,0.0009884,120]
[357231198,1743923454734,-500.0,0.0009884,120]
[357231199,1743923454744,-5000.0,0.0009885,120]
[357231200,1743923454754,-1000.0,0.00099,120]
[357231201,1743923454764,-157286.38919865,0.00099,120]
[357231202,1743923454777,-8013.18369894,0.00099391,8]
[357231203,1743923454787,-2002.7149,0.00099401,14]
[357231204,1743923454796,-2000.0,0.00099401,14]
[357231205,1743923454806,-8013.18369894,0.0009979,8]
[357231206,1743923454818,-500.0,0.00099799,120]
[357231207,1743923454828,-316.76290722,0.00099799,120]
[357231208,1743923454837,-500.0,0.00099799,120]
[357231209,1743923454848,-500.0,0.00099799,120]
[357231210,1743923454858,-512.05,0.00099799,120]
[357231211,1743923454868,-500.0,0.00099799,120]
[357231212,1743923454877,-164.45841454,0.000998,120]
[357231213,1743923454887,-11848.6097,0.000998,120]
[357231214,1743923454897,-898.3346,0.000998,120]
[357231215,1743923454906,-166.48747506,0.000998,120]
[357231216,1743923454915,-210.57292898,0.000998,2]
[357231217,1743923454925,-300.0,0.0009987,120]
[357231218,1743923454935,-228.57434692,0.00099878,120]
[357231219,1743923454944,-207.44534857,0.00099878,120]
[357231220,1743923454954,-500.0,0.00099878,120]
[357231221,1743923454963,-500.0,0.00099878,120]
[357231222,1743923454974,-500.0,0.00099878,120]
[357231223,1743923454984,-24039.5510968,0.00099879,8]
[357231224,1743923454994,-8013.18369894,0.00099889,8]
[357231225,1743923455003,-517.34477609,0.00099889,120]
[357231226,1743923455012,-500.0,0.00099889,120]
[357231227,1743923455021,-500.0,0.00099889,120]
[357231228,1743923455128,-500.0,0.00099889,120]
[357231229,1743923455138,-393.44444134,0.00099889,120]
[357231230,1743923455148,-500.0,0.00099889,120]
[357231231,1743923455157,-500.0,0.00099889,120]
[357231232,1743923455168,-611.36619838,0.00099889,120]
[357231233,1743923455178,-500.0,0.00099889,120]
[357231234,1743923455188,-500.0,0.00099889,120]
[357231235,1743923455198,-209.61,0.00099889,120]
[357231236,1743923455208,-526.64303543,0.00099889,120]
[357231237,1743923455217,-500.0,0.00099889,120]
[357231238,1743923455227,-500.0,0.00099889,120]
[357231239,1743923455237,-500.0,0.00099889,120]
[357231240,1743923455247,-500.0,0.00099889,120]
[357231241,1743923455257,-500.0,0.00099889,120]
[357231242,1743923455267,-1000.0,0.00099889,120]
[357231243,1743923455277,-500.0,0.00099889,120]
[357231244,1743923455286,-500.48,0.00099889,120]
[357231245,1743923455296,-500.0,0.00099889,120]
[357231246,1743923455306,-500.0,0.00099889,120]
[357231247,1743923455318,-500.0,0.00099889,120]
[357231248,1743923455328,-195.73327819,0.00099889,120]
[357231249,1743923455338,-500.0,0.00099889,120]
[357231250,1743923455348,-500.0,0.00099889,120]
[357231251,1743923455358,-528.49377385,0.00099889,120]
[357231252,1743923455368,-564.12305062,0.00099889,120]
[357231253,1743923455378,-500.0,0.00099889,120]
[357231254,1743923455388,-151.10085227,0.00099889,120]
[357231255,1743923455399,-500.0,0.00099889,120]
[357231256,1743923455410,-500.0,0.00099889,120]
[357231257,1743923455420,-190.70892171,0.00099889,120]
[357231258,1743923455431,-500.0,0.00099889,120]
[357231259,1743923455441,-500.0,0.00099889,120]
[357231260,1743923455452,-500.0,0.00099889,120]
[357231261,1743923455462,-500.0,0.00099889,120]
[357231262,1743923455472,-500.0,0.00099889,120]
[357231263,1743923455483,-500.0,0.00099889,120]
[357231264,1743923455493,-500.0,0.00099889,120]
[357231265,1743923455504,-500.0,0.00099889,120]
[357231266,1743923455514,-500.0,0.00099889,30]
[357231267,1743923455524,-500.0,0.00099889,120]
[357231268,1743923455534,-500.0,0.00099889,120]
[357231269,1743923455546,-500.0,0.00099889,120]
[357231270,1743923455556,-196.81850446,0.00099889,120]
[357231271,1743923455568,-500.0,0.00099889,120]
[357231272,1743923455578,-541.70354815,0.00099889,120]
[357231273,1743923455588,-500.0,0.00099889,120]
[357231274,1743923455598,-500.0,0.00099889,30]
[357231275,1743923455608,-500.0,0.00099889,120]
[357231276,1743923455618,-500.0,0.00099889,120]
[357231277,1743923455628,-500.0,0.00099889,120]
[357231278,1743923455638,-500.0,0.00099889,120]
[357231279,1743923455648,-574.00982072,0.00099889,120]
[357231280,1743923455658,-500.0,0.00099889,120]
[357231281,1743923455668,-2448.23,0.00099889,120]
[357231282,1743923455679,-500.0,0.00099889,120]
[357231283,1743923455689,-500.0,0.00099889,120]
[357231284,1743923455699,-505.71192655,0.00099889,120]
[357231285,1743923455709,-500.0,0.00099889,120]
[357231286,1743923455720,-500.0,0.00099889,120]
[357231287,1743923455730,-2365.71,0.00099889,120]
[357231288,1743923455740,-569.50260742,0.00099889,120]
[357231289,1743923455750,-505.92882731,0.00099889,120]
[357231290,1743923455760,-531.85731076,0.00099889,120]
[357231291,1743923455772,-500.0,0.00099889,120]
[357231292,1743923455789,-623.65337588,0.00099889,120]
[357231293,1743923455799,-500.0,0.00099889,120]
[357231294,1743923455809,-538.36552981,0.00099889,120]
[357231295,1743923455822,-549.54137448,0.00099889,120]
[357231296,1743923455833,-567.56823562,0.00099889,120]
[357231297,1743923455843,-542.83614577,0.00099889,120]
[357231298,1743923455854,-500.0,0.00099889,120]
[357231299,1743923455866,-500.0,0.00099889,120]
[357231300,1743923455876,-317.38658643,0.00099889,120]
[357231301,1743923455886,-500.0,0.00099889,120]
[357231302,1743923455896,-522.07086199,0.00099889,120]
[357231303,1743923455906,-500.0,0.00099889,120]
[357231304,1743923455916,-500.0,0.00099889,120]
[357231305,1743923455926,-500.0,0.00099889,120]
[357231306,1743923455935,-500.0,0.00099889,120]
[357231307,1743923455944,-508.96030338,0.00099889,120]
[357231308,1743923455954,-590.74245145,0.00099889,120]
[357231309,1743923455963,-500.0,0.00099889,120]
[357231310,1743923455973,-406.18991163,0.00099889,120]
[357231311,1743923455982,-500.0,0.00099889,120]
[357231312,1743923455992,-500.0,0.00099889,120]
[357231313,1743923456001,-526.12218698,0.00099889,120]
[357231314,1743923456010,-500.0,0.00099889,120]
[357231315,1743923456020,-511.6382856,0.00099889,120]
[357231316,1743923456030,-500.0,0.00099889,120]
[357231317,1743923456039,-500.0,0.00099889,120]
[357231318,1743923456049,-549.45231059,0.00099889,120]
[357231319,1743923456058,-500.0,0.00099889,120]
[357231320,1743923456069,-575.26190391,0.00099889,120]
[357231321,1743923456078,-502.82629369,0.00099889,120]
[357231322,1743923456087,-505.50851461,0.00099889,120]
[357231323,1743923456097,-500.0,0.00099889,120]
[357231324,1743923456106,-500.0,0.00099889,120]
[357231325,1743923456116,-500.0,0.00099889,120]
[357231326,1743923456125,-333.14843105,0.00099889,120]
[357231327,1743923456134,-292.98728393,0.00099889,120]
[357231328,1743923456143,-500.0,0.00099889,120]
[357231329,1743923456152,-500.0,0.00099889,120]
[357231330,1743923456161,-299.07718384,0.00099889,120]
[357231331,1743923456171,-345.56213818,0.00099889,120]
[357231332,1743923456180,-500.39127227,0.00099889,120]
[357231333,1743923456190,-500.0,0.00099889,120]
[357231334,1743923456200,-536.63537777,0.00099889,120]
[357231335,1743923456209,-506.72369622,0.00099889,120]
[357231336,1743923456220,-500.0,0.00099889,120]
[357231337,1743923456230,-500.0,0.00099889,120]
[357231338,1743923456240,-500.0,0.00099889,120]
[357231339,1743923456250,-500.0,0.00099889,30]
[357231340,1743923456260,-500.0,0.00099889,120]
[357231341,1743923456270,-500.0,0.00099889,120]
[357231342,1743923456280,-500.0,0.00099889,2]
[357231343,1743923456290,-542.54,0.00099889,120]
[357231344,1743923456300,-500.0,0.00099889,120]
[357231345,1743923456310,-150.0,0.0009989,120]
[357231346,1743923456320,-150.0,0.0009989,120]
[357231347,1743923456330,-150.0,0.0009989,120]
[357231348,1743923456340,-186.02352584,0.0009989,120]
[357231349,1743923456350,-150.0,0.00099892,120]
[357231350,1743923456360,-150.0,0.00099893,120]
[357231351,1743923456370,-150.0,0.00099895,120]
[357231352,1743923456380,-150.0,0.00099896,120]
[357231353,1743923456389,-150.0,0.00099897,120]
[357231354,1743923456399,-500.0,0.00099898,120]
[357231355,1743923456409,-500.0,0.00099898,120]
[357231356,1743923456419,-500.0,0.00099898,120]
[357231357,1743923456428,-150.0,0.00099899,120]
[357231358,1743923456438,-500.0,0.00099899,120]
[357231359,1743923456448,-500.0,0.00099899,120]
[357231360,1743923456458,-500.0,0.00099899,120]
[357231361,1743923456468,-500.0,0.00099899,120]
[357231362,1743923456478,-500.0,0.00099899,120]
[357231363,1743923456488,-500.0,0.00099899,120]
[357231364,1743923456498,-500.0,0.00099899,120]
[357231365,1743923456509,-500.0,0.00099899,120]
[357231366,1743923456519,-500.0,0.00099899,120]
[357231367,1743923456529,-500.0,0.00099899,120]
[357231368,1743923456540,-500.0,0.00099899,120]
[357231369,1743923456550,-500.0,0.00099899,120]
[357231370,1743923456561,-500.0,0.00099899,120]
[357231371,1743923456571,-500.0,0.00099899,120]
[357231372,1743923456582,-500.0,0.00099899,120]
[357231373,1743923456591,-515.24017681,0.00099899,120]
[357231374,1743923456601,-511.23497577,0.00099899,120]
[357231375,1743923456610,-500.0,0.00099899,120]
[357231376,1743923456620,-500.0,0.00099899,120]
[357231377,1743923456629,-182.88,0.00099899,120]
[357231378,1743923456639,-520.25,0.00099899,120]
[357231379,1743923456648,-571.11116239,0.00099899,120]
[357231380,1743923456658,-500.0,0.00099899,120]
[357231381,1743923456668,-500.0,0.00099899,120]
[357231382,1743923456677,-1120.76783045,0.00099899,120]
[357231383,1743923456686,-500.0,0.00099899,120]
[357231384,1743923456696,-500.0,0.00099899,120]
[357231385,1743923456705,-500.0,0.00099899,120]
[357231386,1743923456715,-443.04,0.00099899,120]
[357231387,1743923456725,-500.54158498,0.00099899,120]
[357231388,1743923456735,-500.0,0.00099899,120]
[357231389,1743923456745,-500.0,0.00099899,120]
[357231390,1743923456755,-500.0,0.00099899,120]
[357231391,1743923456765,-500.0,0.00099899,120]
[357231392,1743923456776,-500.0,0.00099899,120]
[357231393,1743923456786,-500.0,0.00099899,120]
[357231394,1743923456795,-500.0,0.00099899,120]
[357231395,1743923456804,-488.61778993,0.00099899,120]
[357231396,1743923456816,-500.0,0.00099899,120]
[357231397,1743923456826,-500.0,0.00099899,120]
[357231398,1743923456835,-577.65,0.00099899,120]
[357231399,1743923456847,-502.8745305,0.00099899,120]
[357231400,1743923456857,-500.0,0.00099899,120]
[357231401,1743923456867,-500.0,0.00099899,120]
[357231402,1743923456876,-500.0,0.00099899,120]
[357231403,1743923456886,-500.0,0.00099899,120]
[357231404,1743923456895,-500.0,0.00099899,120]
[357231405,1743923456904,-500.0,0.00099899,120]
[357231406,1743923456913,-500.0,0.00099899,120]
[357231407,1743923456922,-500.0,0.00099899,120]
[357231408,1743923456932,-530.72385951,0.00099899,120]
[357231409,1743923456942,-349.04534944,0.00099899,120]
[357231410,1743923456951,-500.0,0.00099899,120]
[357231411,1743923456960,-500.0,0.00099899,120]
[357231412,1743923456970,-500.0,0.00099899,120]
[357231413,1743923456979,-500.0,0.00099899,120]
[357231414,1743923456989,-500.0,0.00099899,120]
[357231415,1743923456998,-447.42371464,0.00099899,120]
[357231416,1743923457007,-545.3339472,0.00099899,120]
[357231417,1743923457017,-500.0,0.00099899,120]
[357231418,1743923457026,-537.15022142,0.00099899,120]
[357231419,1743923457036,-500.0,0.00099899,120]
[357231420,1743923457044,-500.0,0.00099899,120]
[357231421,1743923457054,-500.0,0.00099899,120]
[357231422,1743923457063,-500.0,0.00099899,120]
[357231423,1743923457073,-500.0,0.00099899,120]
[357231424,1743923457082,-237.73032156,0.00099899,120]
[357231425,1743923457092,-500.0,0.00099899,120]
[357231426,1743923457101,-621.28,0.00099899,120]
[357231427,1743923457110,-1000.0,0.00099899,120]
[357231428,1743923457120,-500.0,0.00099899,30]
[357231429,1743923457129,-500.0,0.00099899,30]
[357231430,1743923457138,-500.0,0.00099899,30]
[357231431,1743923457147,-356.55413006,0.00099899,30]
[357231432,1743923457157,-500.0,0.00099899,120]
[357231433,1743923457166,-500.0,0.00099899,120]
[357231434,1743923457175,-254.48268978,0.00099899,120]
[357231435,1743923457185,-567.39404217,0.00099899,120]
[357231436,1743923457194,-500.0,0.00099899,120]
[357231437,1743923457203,-500.0,0.00099899,120]
[357231438,1743923457300,-500.0,0.00099899,120]
[357231439,1743923457309,-500.0,0.00099899,120]
[357231440,1743923457319,-500.0,0.00099899,120]
[357231441,1743923457329,-191.86549401,0.00099899,120]
[357231442,1743923457339,-503.34858766,0.00099899,120]
[357231443,1743923457349,-500.0,0.00099899,120]
[357231444,1743923457359,-500.0,0.00099899,120]
[357231445,1743923457369,-500.0,0.00099899,120]
[357231446,1743923457379,-500.0,0.00099899,120]
[357231447,1743923457389,-500.0,0.00099899,120]
[357231448,1743923457399,-500.0,0.00099899,120]
[357231449,1743923457408,-500.0,0.00099899,120]
[357231450,1743923457418,-287.4382965,0.00099899,120]
[357231451,1743923457428,-500.0,0.00099899,30]
[357231452,1743923457438,-500.0,0.00099899,30]
[357231453,1743923457448,-500.0,0.00099899,30]
[357231454,1743923457458,-518.06759149,0.00099899,120]
[357231455,1743923457467,-500.0,0.00099899,30]
[357231456,1743923457477,-500.0,0.00099899,30]
[357231457,1743923457486,-173.17734455,0.00099899,30]
[357231458,1743923457495,-500.0,0.00099899,120]
[357231459,1743923457505,-500.0,0.00099899,120]
[357231460,1743923457515,-500.0,0.00099899,120]
[357231461,1743923457525,-500.0,0.00099899,120]
[357231462,1743923457534,-645.48432578,0.00099899,120]
[357231463,1743923457544,-500.0,0.00099899,120]
[357231464,1743923457554,-442.16344933,0.00099899,120]
[357231465,1743923457564,-500.0,0.00099899,120]
[357231466,1743923457573,-500.0,0.00099899,120]
[357231467,1743923457583,-500.0,0.00099899,120]
[357231468,1743923457593,-500.0,0.00099899,120]
[357231469,1743923457602,-500.0,0.00099899,120]
[357231470,1743923457611,-500.0,0.00099899,120]
[357231471,1743923457620,-500.0,0.00099899,120]
[357231472,1743923457630,-254.59424636,0.00099899,120]
[357231473,1743923457639,-500.0,0.00099899,120]
[357231474,1743923457649,-500.0,0.00099899,120]
[357231475,1743923457659,-500.0,0.00099899,120]
[357231476,1743923457669,-500.0,0.00099899,120]
[357231477,1743923457679,-500.0,0.00099899,120]
[357231478,1743923457688,-275.72,0.00099899,120]
[357231479,1743923457698,-2448.23,0.00099899,120]
[357231480,1743923457707,-2448.23,0.00099899,120]
[357231481,1743923457717,-2448.23,0.00099899,120]
[357231482,1743923457726,-2448.23,0.00099899,120]
[357231483,1743923457736,-2448.23,0.00099899,120]
[357231484,1743923457745,-2448.23,0.00099899,120]
[357231485,1743923457755,-2448.23,0.00099899,120]
[357231486,1743923457764,-2448.23,0.00099899,120]
[357231487,1743923457776,-539.1921218,0.00099899,120]
[357231488,1743923457785,-500.0,0.00099899,120]
[357231489,1743923457794,-487.09199811,0.00099899,120]
[357231490,1743923457804,-500.0,0.00099899,120]
[357231491,1743923457814,-598.12354691,0.00099899,120]
[357231492,1743923457824,-2365.71,0.00099899,120]
[357231493,1743923457833,-2365.71,0.00099899,120]
[357231494,1743923457843,-2365.71,0.00099899,120]
[357231495,1743923457852,-2365.71,0.00099899,120]
[357231496,1743923457862,-2365.71,0.00099899,120]
[357231497,1743923457871,-2365.71,0.00099899,120]
[357231498,1743923457881,-2365.71,0.00099899,120]
[357231499,1743923457890,-2365.71,0.00099899,120]
[357231500,1743923457899,-197.87296032,0.00099899,120]
[357231501,1743923457909,-560.23559119,0.00099899,120]
[357231502,1743923457919,-508.9556669,0.00099899,120]
[357231503,1743923457929,-512.63841012,0.00099899,120]
[357231504,1743923457938,-500.0,0.00099899,120]
[357231505,1743923457947,-504.5868929,0.00099899,120]
[357231506,1743923457957,-515.35958022,0.00099899,120]
[357231507,1743923457966,-508.5688188,0.00099899,120]
[357231508,1743923457975,-539.83394129,0.00099899,120]
[357231509,1743923457984,-537.56353819,0.00099899,120]
[357231510,1743923457994,-500.0,0.00099899,120]
[357231511,1743923458004,-500.0,0.00099899,120]
[357231512,1743923458013,-517.11,0.00099899,120]
[357231513,1743923458024,-528.00943434,0.00099899,120]
[357231514,1743923458033,-333.05,0.00099899,120]
[357231515,1743923458043,-500.0,0.00099899,120]
[357231516,1743923458052,-500.0,0.00099899,120]
[357231517,1743923458061,-432.39302804,0.00099899,120]
[357231518,1743923458070,-500.0,0.00099899,120]
[357231519,1743923458080,-500.0,0.00099899,120]
[357231520,1743923458090,-500.0,0.00099899,120]
[357231521,1743923458100,-500.0,0.00099899,120]
[357231522,1743923458110,-284.96798479,0.00099899,120]
[357231523,1743923458120,-542.07173785,0.00099899,120]
[357231524,1743923458129,-249.45713662,0.00099899,120]
[357231525,1743923458139,-603.44,0.00099899,120]
[357231526,1743923458148,-500.0,0.00099899,120]
[357231527,1743923458158,-305.37568025,0.00099899,120]
[357231528,1743923458168,-400.08639398,0.00099899,120]
[357231529,1743923458178,-500.0,0.00099899,120]
[357231530,1743923458188,-500.0,0.00099899,120]
[357231531,1743923458198,-500.0,0.00099899,120]
[357231532,1743923458208,-500.0,0.00099899,120]
[357231533,1743923458218,-500.0,0.00099899,120]
[357231534,1743923458228,-500.0,0.00099899,120]
[357231535,1743923458237,-500.0,0.00099899,120]
[357231536,1743923458247,-500.0,0.00099899,120]
[357231537,1743923458256,-525.25146755,0.00099899,120]
[357231538,1743923458266,-500.0,0.00099899,120]
[357231539,1743923458275,-500.0,0.00099899,120]
[357231540,1743923458285,-500.0,0.00099899,120]
[357231541,1743923458294,-500.0,0.00099899,120]
[357231542,1743923458303,-500.0,0.00099899,120]
[357231543,1743923458313,-238.86,0.00099899,120]
[357231544,1743923458327,-500.0,0.00099899,120]
[357231545,1743923458336,-500.0,0.00099899,120]
[357231546,1743923458346,-500.0,0.00099899,120]
[357231547,1743923458355,-500.0,0.00099899,120]
[357231548,1743923458365,-500.0,0.00099899,120]
[357231549,1743923458375,-500.0,0.00099899,120]
[357231550,1743923458385,-500.0,0.00099899,120]
[357231551,1743923458395,-500.0,0.00099899,120]
[357231552,1743923458404,-500.0,0.00099899,120]
[357231553,1743923458414,-500.0,0.00099899,120]
[357231554,1743923458424,-568.56,0.00099899,120]
[357231555,1743923458434,-476.6033018,0.00099899,120]
[357231556,1743923458444,-370.91,0.00099899,120]
[357231557,1743923458454,-256.46576745,0.00099899,120]
[357231558,1743923458463,-500.0,0.00099899,120]
[357231559,1743923458474,-500.0,0.00099899,120]
[357231560,1743923458483,-500.0,0.00099899,120]
[357231561,1743923458493,-500.0,0.00099899,120]
[357231562,1743923458504,-500.0,0.00099899,120]
[357231563,1743923458513,-154.1,0.00099899,120]
[357231564,1743923458523,-500.0,0.00099899,120]
[357231565,1743923458532,-479.85746359,0.00099899,120]
[357231566,1743923458541,-500.0,0.00099899,120]
[357231567,1743923458550,-500.0,0.00099899,120]
[357231568,1743923458559,-500.0,0.00099899,120]
[357231569,1743923458569,-500.0,0.00099899,120]
[357231570,1743923458579,-500.0,0.00099899,120]
[357231571,1743923458588,-500.0,0.00099899,120]
[357231572,1743923458597,-568.94,0.00099899,120]
[357231573,1743923458606,-500.0,0.00099899,120]
[357231574,1743923458615,-500.0,0.00099899,120]
[357231575,1743923458624,-381.34,0.00099899,120]
[357231576,1743923458634,-318.42464194,0.00099899,120]
[357231577,1743923458642,-500.0,0.00099899,120]
[357231578,1743923458651,-500.0,0.00099899,120]
[357231579,1743923458661,-500.0,0.00099899,120]
[357231580,1743923458670,-500.0,0.00099899,120]
[357231581,1743923458679,-500.0,0.00099899,120]
[357231582,1743923458688,-500.0,0.00099899,120]
[357231583,1743923458697,-500.0,0.00099899,120]
[357231584,1743923458707,-500.0,0.00099899,120]
[357231585,1743923458716,-500.0,0.00099899,30]
[357231586,1743923458726,-526.0,0.00099899,30]
[357231587,1743923458735,-500.0,0.00099899,120]
[357231588,1743923458744,-500.0,0.00099899,120]
[357231589,1743923458753,-618.67705351,0.00099899,120]
[357231590,1743923458763,-500.0,0.00099899,120]
[357231591,1743923458773,-500.0,0.00099899,120]
[357231592,1743923458784,-366.89,0.00099899,120]
[357231593,1743923458793,-500.0,0.00099899,120]
[357231594,1743923458802,-500.0,0.00099899,2]
[357231595,1743923458811,-500.0,0.00099899,2]
[357231596,1743923458822,-500.0,0.00099899,2]
[357231597,1743923458831,-500.0,0.00099899,2]
[357231598,1743923458841,-500.0,0.00099899,2]
[357231599,1743923458852,-500.0,0.00099899,2]
[357231600,1743923458862,-500.0,0.00099899,2]
[357231601,1743923458872,-500.0,0.00099899,2]
[357231602,1743923458881,-542.54,0.00099899,120]
[357231603,1743923458890,-542.54,0.00099899,120]
[357231604,1743923458899,-500.0,0.00099899,120]
[357231605,1743923458908,-542.54,0.00099899,120]
[357231606,1743923458917,-500.0,0.00099899,120]
[357231607,1743923458926,-542.54,0.00099899,120]
[357231608,1743923458935,-500.0,0.00099899,120]
[357231609,1743923458945,-542.54,0.00099899,120]
[357231610,1743923458954,-500.0,0.00099899,120]
[357231611,1743923458963,-542.54,0.00099899,120]
[357231612,1743923458972,-500.0,0.00099899,120]
[357231613,1743923458981,-542.54,0.00099899,120]
[357231614,1743923458991,-500.0,0.00099899,120]
[357231615,1743923459000,-542.54,0.00099899,120]
[357231616,1743923459010,-500.0,0.00099899,120]
[357231617,1743923459019,-542.54,0.00099899,120]
[357231618,1743923459029,-500.0,0.00099899,120]
[357231619,1743923459038,-2105094.95432728,0.000999,30]
[357231620,1743923459048,-410.12,0.000999,60]
[357231621,1743923459058,-155.234976,0.000999,3]
[357231622,1743923459067,-161.060461,0.000999,3]
[357231623,1743923459077,-215.0,0.000999,120]
[357231624,1743923459086,-209.0,0.000999,120]
[357231625,1743923459095,-211.0,0.000999,120]
[357231626,1743923459104,-155.234977,0.000999,3]
[357231627,1743923459114,-161.060461,0.000999,3]
[357231628,1743923459123,-211.0,0.000999,120]
[357231629,1743923459132,-155.234977,0.000999,3]
[357231630,1743923459141,-161.060461,0.000999,3]
[357231631,1743923459232,-290.744623,0.000999,120]
[357231632,1743923459242,-290.744623,0.000999,3]
[357231633,1743923459251,-166.382561,0.000999,120]
[357231634,1743923459260,-166.382561,0.000999,3]
[357231635,1743923459269,-1066.0,0.000999,120]
[357231636,1743923459279,-234.74550382,0.000999,120]